bitfinex-derivatives/quotes_BTCF0:USTF0_20251225
["timestamp","ask_amount","ask_price","bid_price","bid_amount"]
[1766626484673,0.04107606,87672.0,87664.0,0.0114151]
[1766626484873,0.04107606,87672.0,87664.0,0.0414151]
[1766626485071,0.04107606,87676.0,87664.0,0.0414151]
[1766626487470,0.04107606,87676.0,87664.0,0.03]
[1766626487866,0.05248966,87676.0,87664.0,0.03]
[1766626490976,0.04107606,87676.0,87664.0,0.03]
[1766626492073,0.04107606,87674.0,87645.0,0.0114176]
[1766626492278,0.0114155,87662.0,87645.0,0.03]
[1766626492475,0.0114157,87660.0,87645.0,0.03]
[1766626492678,0.011416,87658.0,87645.0,0.03]
[1766626496077,0.0114165,87654.0,87645.0,0.03]
[1766626498186,0.0114165,87654.0,87643.0,0.00017105]
[1766626498187,0.00017105,87660.0,87618.0,9.077e-05]
[1766626498486,0.0114189,87636.0,87623.0,0.03251077]
[1766626498681,0.01132,87635.0,87623.0,0.03251077]
[1766626499087,0.0114184,87640.0,87623.0,0.03251077]
[1766626499288,0.0116,87643.0,87623.0,0.03251077]
[1766626499489,0.0116,87643.0,87630.0,0.0114195]
[1766626499691,0.0116,87643.0,87630.0,0.0414195]
[1766626499692,9.784e-05,87643.0,87630.0,0.0414195]
[1766626500186,0.011417,87650.0,87630.0,0.0414195]
[1766626500391,0.00017115,87649.0,87635.0,0.0114188]
[1766626500588,0.00017115,87649.0,87635.0,0.0414188]
[1766626501596,0.00017115,87649.0,87635.0,0.03]
[1766626504200,1.15e-06,87649.0,87635.0,0.03]
[1766626504399,0.04107606,87662.0,87635.0,0.03]
[1766626504700,0.1256107,87698.0,87635.0,0.03]
[1766626504701,0.04108,87656.0,87642.0,0.0114179]
[1766626504901,0.0114154,87663.0,87642.0,0.0414179]
[1766626504902,0.05432,87659.0,87642.0,0.0414179]
[1766626505110,0.04107606,87668.0,87651.0,0.0114167]
[1766626505402,0.0686148,87667.0,87651.0,0.03017115]
[1766626508909,0.0114151,87665.0,87651.0,0.03017115]
[1766626512005,0.0114153,87663.0,87651.0,0.03017115]
[1766626512308,0.0572,87667.0,87651.0,0.03017115]
[1766626512609,0.0572,87667.0,87638.0,0.0114185]
[1766626512610,0.0114162,87656.0,87638.0,0.0114185]
[1766626512806,0.0114162,87656.0,87640.0,0.0114181]
[1766626513001,0.0114162,87656.0,87640.0,0.0414181]
[1766626513911,0.0114162,87656.0,87640.0,0.03]
[1766626514607,0.0114169,87651.0,87640.0,0.03]
[1766626515001,0.0572,87658.0,87640.0,0.03]
[1766626515002,0.0114171,87649.0,87640.0,0.03]
[1766626515402,0.0114174,87647.0,87640.0,0.03]
[1766626516007,0.0114177,87645.0,87640.0,0.03]
[1766626516208,0.0114177,87645.0,87640.0,0.00672374]
[1766626516713,0.0114177,87645.0,87640.0,4e-08]
[1766626517813,0.0114181,87642.0,87639.0,9e-08]
[1766626518510,0.0114181,87642.0,87623.0,0.01393117]
[1766626518511,0.011419,87635.0,87623.0,0.00251077]
[1766626518712,0.0114194,87631.0,87623.0,0.03251077]
[1766626519214,0.00017115,87636.0,87623.0,0.03251077]
[1766626521510,0.0114191,87634.0,87623.0,0.03251077]
[1766626523405,0.00017115,87636.0,87623.0,0.03251077]
[1766626523806,0.00017115,87636.0,87626.0,0.01142]
[1766626524008,0.00017115,87636.0,87626.0,0.04142]
[1766626524710,0.0114179,87643.0,87626.0,0.04142]
[1766626525016,0.02252,87645.0,87630.0,0.0114195]
[1766626525204,0.03608,87647.0,87632.0,0.0114192]
[1766626525400,0.0572,87647.0,87634.0,0.0114189]
[1766626525603,0.0572,87647.0,87634.0,0.03]
[1766626526907,0.01158825,87649.0,87634.0,0.03]
[1766626527308,0.00017115,87649.0,87634.0,0.03]
[1766626527819,0.03021115,87649.0,87634.0,0.03]
[1766626528514,0.0114182,87641.0,87634.0,0.03]
[1766626529110,0.0114178,87644.0,87634.0,0.03]
[1766626530421,0.0114174,87647.0,87634.0,0.03]
[1766626531819,0.03021115,87649.0,87634.0,0.03]
[1766626532022,0.03021115,87649.0,87634.0,0.0414189]
[1766626532217,0.06141221,87657.0,87634.0,0.0414189]
[1766626532218,0.04107606,87654.0,87640.0,0.0114182]
[1766626532419,0.0114163,87656.0,87640.0,0.03]
[1766626532420,0.0572,87653.0,87640.0,0.03]
[1766626535326,0.0572,87653.0,87640.0,0.0414182]
[1766626535521,0.00017115,87655.0,87640.0,0.0414182]
[1766626535728,0.00017115,87655.0,87642.0,0.011418]
[1766626535926,0.00017115,87655.0,87642.0,0.041418]
[1766626536333,0.00017115,87655.0,87642.0,0.03]
[1766626536932,0.01158745,87655.0,87642.0,0.03]
[1766626537829,0.00017115,87655.0,87642.0,0.03]
[1766626538332,0.011417,87650.0,87632.0,0.00017115]
[1766626538528,0.011417,87650.0,87632.0,0.03017115]
[1766626538830,0.011417,87650.0,87633.0,0.01141]
[1766626539018,0.011417,87650.0,87633.0,0.04141]
[1766626540126,0.00017115,87655.0,87633.0,0.04141]
[1766626543327,0.00017115,87655.0,87639.0,0.0114184]
[1766626543632,0.00017115,87655.0,87639.0,0.0414184]
[1766626543833,0.06141221,87663.0,87639.0,0.03]
[1766626544034,0.0114152,87664.0,87644.0,0.0114176]
[1766626544228,0.0114152,87664.0,87644.0,0.0414176]
[1766626544532,0.04556,87667.0,87644.0,0.03]
[1766626544734,0.00017115,87664.0,87647.0,0.00017115]
[1766626544923,0.0114158,87659.0,87647.0,0.03017115]
[1766626545119,0.0114165,87654.0,87647.0,0.03017115]
[1766626545332,0.0114161,87657.0,87647.0,0.03017115]
[1766626546634,0.0114157,87660.0,87647.0,0.03017115]
[1766626549235,0.011416,87658.0,87647.0,0.03017115]
[1766626549430,0.0114162,87656.0,87647.0,0.03017115]
[1766626552537,0.0114162,87656.0,87648.0,0.0114]
[1766626552738,0.0114162,87656.0,87648.0,0.0414]
[1766626554631,0.0114165,87654.0,87648.0,0.0414]
[1766626555343,0.0114167,87652.0,87648.0,0.0414]
[1766626555537,0.06158336,87664.0,87648.0,0.0414]
[1766626556133,0.0114164,87655.0,87648.0,0.0414]
[1766626556334,0.0114153,87663.0,87648.0,0.0414]
[1766626556737,0.0114161,87657.0,87648.0,0.0414]
[1766626557946,0.0114164,87655.0,87648.0,0.0414]
[1766626559351,0.0114166,87653.0,87648.0,0.0414]
[1766626560448,0.06158336,87664.0,87648.0,0.0414]
[1766626562046,0.0114153,87663.0,87648.0,0.0414]
[1766626563150,0.0114162,87657.0,87648.0,0.0414]
[1766626563351,0.0114163,87655.0,87648.0,0.0414]
[1766626564936,0.011416,87658.0,87648.0,0.0414]
[1766626566443,0.06141221,87659.0,87648.0,0.0414]
[1766626566645,2.21e-06,87659.0,87648.0,0.0414]
[1766626566952,0.01141801,87659.0,87648.0,0.0414]
[1766626567548,0.0114162,87656.0,87648.0,0.0414]
[1766626568750,0.0114164,87654.0,87648.0,0.0414]
[1766626568951,0.01097304,87654.0,87648.0,0.0414]
[1766626569342,0.011416,87658.0,87648.0,0.0414]
[1766626570152,0.0114162,87656.0,87648.0,0.0414]
[1766626571753,0.0114164,87654.0,87648.0,0.0414]
[1766626572053,0.0114167,87652.0,87648.0,7e-08]
[1766626572246,0.0114167,87652.0,87648.0,0.00672384]
[1766626572554,0.0114154,87662.0,87648.0,4e-08]
[1766626573357,0.0114167,87652.0,87648.0,4e-08]
[1766626573851,0.05253087,87652.0,87648.0,4e-08]
[1766626575157,0.0114167,87652.0,87648.0,4e-08]
[1766626575360,0.011417,87650.0,87648.0,0.03]
[1766626575853,0.011417,87650.0,87647.0,9e-08]
[1766626577351,0.0114165,87654.0,87647.0,9e-08]
[1766626579261,0.0114162,87657.0,87647.0,9e-08]
[1766626580461,0.04111417,87659.0,87647.0,9e-08]
[1766626582262,0.05252997,87659.0,87647.0,9e-08]
[1766626588168,0.04111417,87659.0,87647.0,9e-08]
[1766626588366,0.04111417,87658.0,87647.0,9e-08]
[1766626590071,0.0114164,87655.0,87647.0,9e-08]
[1766626592572,0.05253017,87658.0,87647.0,9e-08]
[1766626593774,0.011416,87658.0,87647.0,9e-08]
[1766626594080,0.0114162,87656.0,87647.0,9e-08]
[1766626596074,0.0114165,87654.0,87647.0,9e-08]
[1766626601275,0.0114162,87657.0,87647.0,9e-08]
[1766626607387,0.0114162,87657.0,87586.0,0.14444939]
[1766626607388,0.04111417,87656.0,87628.0,0.0222998]
[1766626607582,0.0114175,87646.0,87628.0,0.0522998]
[1766626607883,0.0114178,87644.0,87628.0,0.04088]
[1766626608388,0.011418,87642.0,87628.0,0.04088]
[1766626609585,0.0114183,87640.0,87628.0,0.04088]
[1766626611989,0.0114186,87638.0,87628.0,0.04088]
[1766626612193,0.0114186,87638.0,87627.0,0.05733115]
[1766626612392,0.0114186,87638.0,87622.0,0.0114205]
[1766626612596,0.0114186,87638.0,87624.0,0.05716]
[1766626612891,0.0114186,87638.0,87624.0,0.08716]
[1766626613092,0.00017115,87645.0,87624.0,0.03]
[1766626613093,0.0114181,87641.0,87624.0,0.03]
[1766626613287,0.00017115,87645.0,87624.0,0.03]
[1766626614191,0.00017115,87645.0,87633.0,0.0114191]
[1766626614381,0.00017115,87645.0,87633.0,0.0414191]
[1766626615377,0.00017115,87645.0,87633.0,0.03]
[1766626623691,0.00017115,87645.0,87633.0,0.0414191]
[1766626623893,0.04111417,87649.0,87633.0,0.03]
[1766626624094,0.06166705,87655.0,87633.0,0.03]
[1766626624292,0.06166705,87660.0,87641.0,0.011418]
[1766626624494,0.0114161,87657.0,87641.0,0.0784]
[1766626625200,0.0114164,87655.0,87641.0,0.0784]
[1766626625397,0.0114166,87653.0,87641.0,0.0784]
[1766626626403,0.0114162,87656.0,87641.0,0.0784]
[1766626627806,0.00017115,87658.0,87641.0,0.03]
[1766626628008,0.00017115,87658.0,87641.0,0.0872]
[1766626628610,0.0114167,87652.0,87641.0,0.0872]
[1766626629295,0.02724,87657.0,87640.0,0.00017115]
[1766626629498,0.02724,87657.0,87640.0,0.01017115]
[1766626630195,0.0114178,87644.0,87640.0,5e-08]
[1766626631708,0.0114174,87647.0,87640.0,5e-08]
[1766626632596,0.06166705,87656.0,87640.0,5e-08]
[1766626632797,0.011418,87642.0,87640.0,5e-08]
[1766626640311,0.0572,87645.0,87640.0,5e-08]
[1766626647710,0.0114177,87644.0,87640.0,5e-08]
[1766626648112,0.0572,87645.0,87640.0,5e-08]
[1766626650023,0.0686176,87645.0,87640.0,5e-08]
[1766626652828,0.0114179,87643.0,87640.0,5e-08]
[1766626658727,0.0572,87645.0,87640.0,5e-08]
[1766626660130,0.04107463,87647.0,87640.0,5e-08]
[1766626660432,0.05716,87646.0,87640.0,5e-08]
[1766626660649,0.05716,87645.0,87640.0,5e-08]
[1766626665228,0.05716,87645.0,87640.0,0.03]
[1766626668033,0.06166705,87649.0,87640.0,0.03]
[1766626668333,0.06166705,87649.0,87640.0,0.02]
[1766626668541,0.06166705,87649.0,87640.0,0.01]
[1766626673744,0.06166705,87650.0,87640.0,0.01]
[1766626674841,0.06166705,87651.0,87640.0,0.01]
[1766626675344,0.05716,87652.0,87640.0,0.01]
[1766626678544,0.05716,87652.0,87641.0,0.0114181]
[1766626678744,0.05716,87652.0,87641.0,0.0414181]
[1766626678944,0.05716,87652.0,87641.0,0.03]
[1766626679948,0.05716,87652.0,87642.0,0.011418]
[1766626680145,0.05716,87652.0,87642.0,0.041418]
[1766626680447,0.00017115,87658.0,87642.0,0.03]
[1766626680653,0.05716,87657.0,87642.0,0.03]
[1766626681250,0.06166705,87670.0,87642.0,0.03]
[1766626681456,0.05716,87669.0,87642.0,0.03]
[1766626681659,0.0114146,87668.0,87642.0,0.03]
[1766626682244,0.00017115,87664.0,87646.0,0.00017115]
[1766626682445,0.00017115,87664.0,87651.0,0.0114168]
[1766626682649,0.00017115,87664.0,87651.0,0.0414168]
[1766626683058,0.00017115,87664.0,87653.0,0.0114165]
[1766626683261,0.00017115,87664.0,87653.0,0.0414165]
[1766626684461,0.05716,87669.0,87653.0,0.03]
[1766626686060,0.05716,87669.0,87656.0,0.0114161]
[1766626686361,0.05716,87669.0,87656.0,0.0414161]
[1766626687863,0.00017115,87670.0,87656.0,0.0414161]
[1766626688261,0.00017115,87670.0,87656.0,0.03]
[1766626696968,0.00017115,87670.0,87656.0,0.0414161]
[1766626702476,0.00017115,87670.0,87656.0,0.03]
[1766626703278,0.01158555,87670.0,87656.0,0.03]
[1766626703484,0.00017115,87670.0,87656.0,0.03]
[1766626703882,0.0114146,87668.0,87656.0,0.03]
[1766626704275,0.00017115,87670.0,87656.0,0.03]
[1766626705077,0.04101469,87667.0,87656.0,0.03]
[1766626706383,0.04101469,87666.0,87656.0,0.03]
[1766626708385,0.04101469,87665.0,87656.0,0.03]
[1766626709184,0.04101469,87665.0,87656.0,0.01]
[1766626709393,0.04101469,87662.0,87656.0,0.01]
[1766626709579,0.04101469,87662.0,87656.0,0.03]
[1766626709779,0.0114156,87661.0,87656.0,0.01875422]
[1766626711988,0.04101469,87662.0,87656.0,0.01875422]
[1766626713692,0.04101469,87661.0,87656.0,0.01875422]
[1766626714893,0.11882705,87667.0,87656.0,0.01875422]
[1766626715187,0.05716,87667.0,87656.0,0.01875422]
[1766626721194,0.00017115,87670.0,87656.0,0.01875422]
[1766626721396,0.05733115,87670.0,87656.0,0.01875422]
[1766626725101,0.05733115,87670.0,87656.0,0.03017032]
[1766626732412,0.05733115,87670.0,87656.0,0.01875422]
[1766626741809,0.05733115,87670.0,87646.0,1.15e-06]
[1766626741810,0.0114147,87668.0,87646.0,1.15e-06]
[1766626742006,0.05733115,87670.0,87646.0,1.15e-06]
[1766626742007,0.0114157,87660.0,87646.0,0.03]
[1766626742308,0.0114159,87658.0,87646.0,0.03]
[1766626746921,0.0114162,87656.0,87646.0,0.03]
[1766626747216,0.0114164,87654.0,87646.0,0.03]
[1766626747417,0.0114164,87654.0,87646.0,0.015]
[1766626747609,0.04396,87659.0,87643.0,1.15e-06]
[1766626747810,0.04396,87659.0,87632.0,0.0114193]
[1766626748117,0.0114168,87652.0,87634.0,0.011419]
[1766626748309,0.0114168,87652.0,87634.0,0.041419]
[1766626748814,0.01158795,87652.0,87634.0,0.041419]
[1766626750208,0.011417,87650.0,87634.0,0.03]
[1766626752419,0.00017115,87652.0,87634.0,0.03]
[1766626754024,0.00017115,87652.0,87639.0,0.0114183]
[1766626754321,0.00017115,87652.0,87639.0,0.0414183]
[1766626754714,0.04108239,87660.0,87639.0,0.03]
[1766626754920,0.04052,87664.0,87639.0,0.03]
[1766626755120,0.04108239,87663.0,87639.0,0.03]
[1766626755717,0.00017115,87660.0,87642.0,0.01158905]
[1766626755917,0.00017115,87660.0,87643.0,0.02244]
[1766626756117,0.011416,87658.0,87643.0,0.05244]
[1766626756723,0.00017115,87660.0,87643.0,0.05244]
[1766626758225,0.00017115,87660.0,87644.0,0.0114177]
[1766626758426,0.00017115,87660.0,87644.0,0.0414177]
[1766626759128,0.00017115,87660.0,87646.0,0.0114174]
[1766626759317,0.00017115,87660.0,87646.0,0.0414174]
[1766626762329,0.00017115,87660.0,87648.0,0.0114171]
[1766626762625,0.00017115,87660.0,87648.0,0.0414171]
[1766626763418,0.04052,87664.0,87648.0,0.03]
[1766626763723,0.01369366,87683.0,87648.0,0.03]
[1766626763724,0.011414,87673.0,87655.0,0.0114163]
[1766626764027,0.011414,87673.0,87655.0,0.0414163]
[1766626764417,0.01158515,87673.0,87655.0,0.0414163]
[1766626765920,0.00017115,87673.0,87655.0,0.0414163]
[1766626767733,0.00017115,87673.0,87657.0,0.011416]
[1766626768030,0.00017115,87673.0,87657.0,0.041416]
[1766626769129,0.00017115,87673.0,87662.0,0.0114153]
[1766626769325,0.05716,87675.0,87662.0,0.0414153]
[1766626769527,0.05716,87675.0,87662.0,0.03]
[1766626769725,0.0114131,87680.0,87662.0,0.03]
[1766626770235,0.01158425,87680.0,87662.0,0.03017115]
[1766626771934,0.0114134,87678.0,87662.0,0.03017115]
[1766626772137,0.00017115,87680.0,87662.0,0.03017115]
[1766626772432,0.0114135,87677.0,87662.0,0.03017115]
[1766626780335,0.0114138,87675.0,87662.0,0.03017115]
[1766626780542,0.00017115,87680.0,87662.0,0.03017115]
[1766626780937,0.0114145,87670.0,87662.0,0.03017115]
[1766626782041,0.0114146,87668.0,87662.0,0.03017115]
[1766626788232,0.06166705,87678.0,87662.0,0.03017115]
[1766626788437,0.07308035,87679.0,87662.0,0.03017115]
[1766626789146,0.0114145,87669.0,87662.0,0.03017115]
[1766626789343,0.06166705,87678.0,87662.0,0.03017115]
[1766626789646,0.0114145,87670.0,87662.0,0.03017115]
[1766626795340,0.04108908,87667.0,87662.0,0.00327683]
[1766626796253,0.04108908,87666.0,87662.0,0.00327683]
[1766626797754,0.04108908,87667.0,87662.0,0.00327683]
[1766626798462,0.04108908,87666.0,87662.0,0.00327683]
[1766626803362,0.05716,87677.0,87667.0,0.0114146]
[1766626803563,1.4558,87690.0,87672.0,0.011414]
[1766626803860,0.0114117,87691.0,87672.0,0.03]
[1766626803861,0.05716,87686.0,87672.0,0.03]
[1766626805661,0.05733115,87688.0,87672.0,0.03]
[1766626805858,0.0114108,87698.0,87673.0,0.04724]
[1766626806064,0.011411,87696.0,87674.0,0.0114137]
[1766626806257,0.011411,87696.0,87674.0,0.0414137]
[1766626806556,0.0114113,87694.0,87674.0,0.0414137]
[1766626806965,0.00017115,87693.0,87674.0,0.0414137]
[1766626808763,0.00017115,87693.0,87676.0,0.0114135]
[1766626808964,0.00017115,87693.0,87676.0,0.0414135]
[1766626811268,0.00017115,87693.0,87678.0,0.0114133]
[1766626811568,0.00017115,87693.0,87681.0,0.0114129]
[1766626811770,0.00017115,87693.0,87681.0,0.0414129]
[1766626812367,0.00017115,87693.0,87681.0,0.03]
[1766626818573,0.00017115,87693.0,87681.0,0.0414129]
[1766626819276,0.00017115,87693.0,87681.0,0.03]
[1766626824567,0.01158255,87693.0,87681.0,0.03]
[1766626826470,0.00956,87699.0,87681.0,0.03]
[1766626827474,0.011411,87696.0,87681.0,0.03017115]
[1766626831276,0.0114113,87694.0,87681.0,0.03017115]
[1766626835886,0.0114115,87692.0,87681.0,0.03017115]
[1766626836072,0.05248419,87695.0,87681.0,0.03017115]
[1766626838685,0.0114114,87693.0,87681.0,0.03017115]
[1766626845298,0.04107309,87689.0,87681.0,0.03017115]
[1766626845791,0.04107309,87688.0,87681.0,0.03017115]
[1766626845988,0.0114114,87693.0,87681.0,0.03017115]
[1766626845989,0.04107309,87689.0,87681.0,0.03017115]
[1766626846191,0.04107309,87688.0,87681.0,0.03017115]
[1766626846393,0.04107309,87689.0,87681.0,0.03017115]
[1766626850496,0.0728545,87693.0,87681.0,0.03017115]
[1766626850497,0.0114111,87696.0,87681.0,0.04158405]
[1766626850694,0.02108369,87699.0,87681.0,0.04158405]
[1766626850886,0.00967299,87699.0,87683.0,0.0114126]
[1766626851086,0.00967299,87699.0,87683.0,0.0414126]
[1766626851294,0.00967299,87699.0,87685.0,0.0114124]
[1766626851598,0.00967299,87699.0,87685.0,0.03]
[1766626851893,0.10231716,87714.0,87685.0,0.03]
[1766626852086,0.0685289,87712.0,87693.0,0.0114113]
[1766626852392,0.06880747,87712.0,87693.0,0.03]
[1766626852582,0.0114095,87708.0,87693.0,0.03]
[1766626852781,0.06880747,87712.0,87693.0,0.03]
[1766626852782,0.0114097,87706.0,87693.0,0.03]
[1766626852983,0.06880747,87712.0,87693.0,0.03]
[1766626853390,0.06880747,87712.0,87693.0,0.01]
[1766626853593,0.0114102,87702.0,87693.0,0.01]
[1766626857392,0.0114105,87700.0,87693.0,0.01]
[1766626858593,0.0114097,87706.0,87693.0,0.01]
[1766626858800,0.06880747,87712.0,87693.0,0.0214113]
[1766626858801,0.0114094,87709.0,87693.0,0.0214113]
[1766626858985,0.0114094,87709.0,87695.0,0.011411]
[1766626859190,0.0114094,87709.0,87695.0,0.041411]
[1766626859679,0.0114094,87709.0,87695.0,0.03]
[1766626862292,0.0114096,87707.0,87695.0,0.03]
[1766626863400,0.02956,87710.0,87695.0,0.03]
[1766626864400,0.00228018,87713.0,87702.0,0.0114101]
[1766626864601,1.568528,87719.0,87702.0,0.03]
[1766626864800,0.0114083,87717.0,87702.0,0.03]
[1766626866099,0.0114085,87715.0,87702.0,0.03]
[1766626866301,1.56836374,87719.0,87702.0,0.03]
[1766626866600,0.0114088,87713.0,87702.0,0.03]
[1766626867099,1.56836374,87719.0,87702.0,0.03]
[1766626867303,0.0114096,87707.0,87702.0,0.01]
[1766626867596,0.0114095,87708.0,87702.0,0.03]
[1766626867801,0.0114095,87708.0,87699.0,0.00017106]
[1766626868002,0.0114095,87708.0,87699.0,0.01017106]
[1766626868904,0.0114102,87702.0,87689.0,0.01904]
[1766626869100,0.0114099,87705.0,87689.0,0.03904]
[1766626869299,0.0114101,87703.0,87689.0,0.03904]
[1766626869495,0.0114101,87703.0,87689.0,0.02]
[1766626869994,0.00017073,87705.0,87689.0,0.02]
[1766626870396,0.01141,87704.0,87689.0,0.02]
[1766626871802,0.00017073,87705.0,87689.0,0.02]
[1766626872807,0.0114106,87699.0,87689.0,0.02]
[1766626874001,0.0114108,87698.0,87689.0,0.02]
[1766626880607,0.011411,87696.0,87689.0,0.02]
[1766626881412,0.0114107,87699.0,87689.0,0.02]
[1766626885919,0.0114109,87697.0,87689.0,0.02]
[1766626897428,0.0114106,87700.0,87689.0,0.02]
[1766626900234,0.0114102,87703.0,87689.0,0.02]
[1766626905738,0.08205081,87721.0,87699.0,0.0114105]
[1766626906038,0.18436797,87733.0,87705.0,0.0114097]
[1766626906338,0.0114074,87724.0,87705.0,0.0414097]
[1766626906641,0.0114076,87722.0,87706.0,0.00017106]
[1766626906840,0.01988,87721.0,87706.0,0.03017106]
[1766626907232,0.05712,87721.0,87706.0,0.03017106]
[1766626908344,1.5,87723.0,87706.0,0.03017106]
[1766626908345,1.55712,87723.0,87706.0,0.03017106]
[1766626909039,0.0114062,87733.0,87706.0,0.06293106]
[1766626909253,0.05712,87732.0,87706.0,0.06293106]
[1766626909945,1.5,87731.0,87706.0,0.06293106]
[1766626910345,1.5,87731.0,87714.0,0.0114086]
[1766626910546,1.5,87731.0,87714.0,0.0414086]
[1766626914045,1.5,87731.0,87719.0,0.0114079]
[1766626914248,0.02712,87732.0,87721.0,0.0114077]
[1766626914438,0.02712,87732.0,87721.0,0.0414077]
[1766626914945,0.02712,87732.0,87721.0,0.03]
[1766626915147,1.5,87731.0,87721.0,0.03]
[1766626917751,0.05712,87737.0,87721.0,0.03]
[1766626918456,1.5,87736.0,87721.0,0.03]
[1766626919253,0.0114064,87732.0,87721.0,0.03]
[1766626923758,1.5,87731.0,87721.0,0.03]
[1766626931970,1.5114064,87731.0,87721.0,0.03]
[1766626932170,1.5,87731.0,87721.0,0.03]
[1766626935175,1.5,87731.0,87721.0,0.01]
[1766626935361,1.5,87731.0,87717.0,0.04304]
[1766626935563,1.5,87731.0,87717.0,0.05804]
[1766626937273,0.05712,87730.0,87717.0,0.05804]
[1766626937973,0.05712,87730.0,87717.0,0.0694482]
[1766626938566,0.05712,87730.0,87719.0,0.0114079]
[1766626938766,0.05712,87730.0,87719.0,0.0414079]
[1766626942176,0.05712,87730.0,87719.0,0.03]
[1766626973328,0.05712,87730.0,87720.0,0.0114078]
[1766626973521,0.05712,87730.0,87720.0,0.0414078]
[1766626974823,0.05712,87731.0,87720.0,0.03]
[1766626975128,0.05712,87733.0,87720.0,0.03]
[1766626975319,0.05712,87733.0,87726.0,0.011407]
[1766626975517,0.05712,87733.0,87726.0,0.041407]
[1766626976225,0.05712,87733.0,87728.0,0.0114068]
[1766626976424,0.05712,87736.0,87728.0,0.0414067]
[1766626977124,1.5,87742.0,87728.0,0.03]
[1766626977322,0.0022794,87743.0,87728.0,0.03]
[1766626977626,0.05712,87742.0,87728.0,0.0414067]
[1766626978922,0.05712,87742.0,87730.0,0.0114065]
[1766626979128,0.05712,87742.0,87730.0,0.0414065]
[1766626979322,0.0022794,87743.0,87730.0,0.03]
[1766626979524,0.0022794,87743.0,87734.0,0.011406]
[1766626979728,0.05712,87746.0,87734.0,0.011406]
[1766626979729,0.05712,87746.0,87734.0,0.041406]
[1766626983329,0.05712,87746.0,87736.0,0.0114057]
[1766626983531,0.00022814,87755.0,87737.0,0.05516]
[1766626983833,0.00022814,87755.0,87737.0,0.08516]
[1766626986326,0.07276094,87770.0,87750.0,0.0114039]
[1766626986629,0.0114013,87771.0,87751.0,0.01157475]
[1766626986834,1.5,87770.0,87751.0,0.04157475]
[1766626987226,0.0114016,87769.0,87751.0,0.03017095]
[1766626987421,1.5,87770.0,87751.0,0.03017095]
[1766626987833,0.0114019,87766.0,87751.0,0.03017095]
[1766626994036,0.05708,87769.0,87751.0,0.03017095]
[1766626995229,0.0114023,87763.0,87751.0,0.03017095]
[1766626995538,0.05708,87762.0,87751.0,0.03017095]
[1766626996931,0.0114025,87761.0,87751.0,0.03017095]
[1766627000939,1.5,87770.0,87751.0,0.03017095]
[1766627001140,0.05708,87769.0,87751.0,0.03017095]
[1766627001534,1.5,87768.0,87751.0,0.03017095]
[1766627002136,0.0114022,87764.0,87751.0,0.03017095]
[1766627002336,1.5,87768.0,87751.0,0.03017095]
[1766627006454,1.5,87768.0,87752.0,0.0114037]
[1766627006651,1.5,87768.0,87752.0,0.0414037]
[1766627006853,2e-08,87773.0,87768.0,0.0114015]
[1766627007051,0.0113992,87787.0,87768.0,0.03]
[1766627007243,1.50524,87786.0,87769.0,0.00017095]
[1766627007444,1.5,87786.0,87769.0,0.03017095]
[1766627007951,0.05708,87785.0,87769.0,0.03017095]
[1766627008151,0.0114004,87778.0,87769.0,9.5e-07]
[1766627008355,0.05708,87777.0,87760.0,0.0114026]
[1766627008553,0.05708,87777.0,87760.0,0.0414026]
[1766627008738,0.05708,87777.0,87760.0,0.03]
[1766627008940,0.05708,87777.0,87760.0,0.015]
[1766627009151,0.05725062,87777.0,87760.0,0.03017095]
[1766627009856,0.06865112,87777.0,87760.0,0.03017095]
[1766627010051,0.0114008,87775.0,87760.0,0.03017095]
[1766627013255,0.05725062,87777.0,87760.0,0.03017095]
[1766627013451,0.011401,87773.0,87760.0,0.03017095]
[1766627015062,0.0114013,87771.0,87761.0,0.0003]
[1766627015261,0.0114013,87771.0,87761.0,0.0303]
[1766627018363,0.06865112,87777.0,87760.0,0.00017095]
[1766627018560,0.0114015,87769.0,87750.0,0.0114039]
[1766627018864,0.05708,87768.0,87750.0,0.0414039]
[1766627019066,0.0114017,87767.0,87750.0,0.0414039]
[1766627019563,0.0114017,87767.0,87750.0,0.04157485]
[1766627023371,0.05708,87768.0,87750.0,0.04157485]
[1766627027868,0.05708,87768.0,87752.0,0.0114037]
[1766627028166,0.05708,87768.0,87752.0,0.0414037]
[1766627028561,0.05708,87768.0,87754.0,0.0114034]
[1766627028762,0.05708,87768.0,87754.0,0.0414034]
[1766627029167,0.05708,87768.0,87756.0,0.0114031]
[1766627029362,0.05708,87768.0,87756.0,0.0414031]
[1766627034475,0.0114009,87774.0,87756.0,0.0414031]
[1766627034684,0.0114011,87772.0,87756.0,0.0414031]
[1766627034872,0.05708,87771.0,87756.0,0.03]
[1766627035372,0.0114011,87772.0,87756.0,0.03]
[1766627035572,0.02336,87771.0,87756.0,0.03]
[1766627036065,0.00017062,87777.0,87756.0,0.03]
[1766627036467,0.05708,87776.0,87756.0,0.03]
[1766627036672,0.00017062,87777.0,87756.0,0.03]
[1766627036872,0.0114013,87771.0,87756.0,0.03]
[1766627037272,0.02192,87770.0,87756.0,0.03]
[1766627037570,0.0114013,87771.0,87756.0,0.03]
[1766627037982,0.02192,87770.0,87756.0,0.03]
[1766627038384,0.0114013,87771.0,87756.0,0.03]
[1766627038585,0.04344,87770.0,87756.0,0.03]
[1766627038780,0.0114015,87769.0,87756.0,0.03]
[1766627038974,0.0684815,87769.0,87756.0,0.03]
[1766627039180,0.02176,87768.0,87756.0,0.03]
[1766627039377,0.0114015,87769.0,87756.0,0.03]
[1766627039580,0.04328,87767.0,87756.0,0.03]
[1766627039786,0.0114015,87769.0,87756.0,0.03]
[1766627040178,0.0206,87768.0,87756.0,0.03]
[1766627040380,0.0114015,87769.0,87756.0,0.03]
[1766627040580,0.02176,87768.0,87756.0,0.03]
[1766627040788,0.032,87767.0,87756.0,0.03]
[1766627040992,0.0114011,87772.0,87756.0,0.03]
[1766627041491,0.02048,87771.0,87756.0,0.03]
[1766627041693,0.0114011,87772.0,87756.0,0.03]
[1766627041895,0.043,87770.0,87756.0,0.03]
[1766627043498,0.0114017,87768.0,87756.0,0.03]